bitfinex/quotes_SOLUSD_20250817
["timestamp","ask_amount","ask_price","bid_price","bid_amount"]
[1755427483561,0.67,192.6,192.59,29.878832]
[1755427483732,0.67,192.6,192.59,3.878832]
[1755427486738,0.06,192.6,192.59,9.07120958]
[1755427487764,0.06,192.6,192.59,9.75120958]
[1755427488456,0.06,192.6,192.59,9.07120958]
[1755427490486,0.06,192.6,192.59,9.75120958]
[1755427491170,0.06,192.6,192.59,15.00699232]
[1755427497570,0.06,192.6,192.59,14.32699232]
[1755427497754,0.67,192.6,192.59,50.72699232]
[1755427498449,0.06,192.6,192.59,50.72699232]
[1755427499259,0.06,192.6,192.59,51.40699232]
[1755427501667,0.06,192.6,192.59,52.32623007]
[1755427501858,0.06,192.6,192.59,14.84623007]
[1755427502065,0.16,192.6,192.59,9.13461474]
[1755427502259,0.06,192.6,192.59,46.03461474]
[1755427502475,0.06,192.6,192.59,9.13461474]
[1755427502670,0.06,192.6,192.59,15.00699232]
[1755427502870,0.06,192.6,192.59,14.32699232]
[1755427503061,0.06,192.6,192.59,41.00699232]
[1755427503666,1e-08,192.6,192.59,15.00699232]
[1755427503990,1e-08,192.62,192.6,13.56654694]
[1755427504162,1e-08,192.62,192.61,63.0]
[1755427504363,1e-08,192.62,192.61,31.87183842]
[1755427504557,1e-08,192.62,192.61,68.89183842]
[1755427506657,1e-08,192.62,192.61,69.41102226]
[1755427507477,1e-08,192.64,192.61,69.41102226]
[1755427507685,1e-08,192.64,192.62,0.68]
[1755427507890,0.10000001,192.64,192.61,31.19183842]
[1755427508090,1e-08,192.64,192.61,31.19183842]
[1755427508396,0.1,192.63,192.61,37.08]
[1755427508581,0.1,192.63,192.59,14.32694329]
[1755427508897,0.1,192.63,192.6,37.08]
[1755427510164,0.06,192.62,192.6,37.08]
[1755427510375,0.1,192.61,192.6,37.08]
[1755427510579,0.1,192.61,192.59,40.958832]
[1755427510797,0.1,192.61,192.58,37.06]
[1755427510992,0.1,192.6,192.58,39.140138]
[1755427512376,0.1,192.6,192.57,37.06]
[1755427512579,0.1,192.6,192.57,3.878871]
[1755427512860,0.1,192.6,192.56,26.03]
[1755427513506,0.1,192.6,192.56,0.03]
[1755427513507,5.29215331,192.6,192.56,0.03]
[1755427513699,0.1,192.59,192.56,0.03]
[1755427514009,12.56797643,192.58,192.56,0.03]
[1755427514316,7.47532922,192.57,192.56,0.03]
[1755427514674,3.98143662,192.57,192.56,0.03]
[1755427514874,7.47532922,192.57,192.56,0.03]
[1755427515105,9.17435348,192.57,192.56,0.03]
[1755427516092,12.66824608,192.57,192.56,0.03]
[1755427516310,9.17435348,192.57,192.56,0.03]
[1755427517080,12.66824608,192.57,192.56,0.03]
[1755427517276,9.17435348,192.57,192.56,0.03]
[1755427518010,9.16714956,192.57,192.56,0.03]
[1755427518474,9.1657179,192.57,192.56,0.03]
[1755427520881,9.16321924,192.57,192.56,0.03]
[1755427522192,5.29291686,192.57,192.56,0.03]
[1755427529089,42.35291686,192.57,192.56,0.03]
[1755427532415,37.04,192.57,192.56,0.7]
[1755427532796,37.04,192.57,192.56,0.03]
[1755427534094,42.23291686,192.57,192.56,0.03]
[1755427534608,37.04,192.57,192.56,0.03]
[1755427534814,37.08,192.57,192.56,0.7]
[1755427536391,37.08,192.57,192.56,0.03]
[1755427537531,42.27291686,192.57,192.56,0.03]
[1755427538396,42.88291686,192.57,192.56,0.03]
[1755427540415,42.27291686,192.57,192.56,0.03]
[1755427541911,42.88291686,192.57,192.56,0.03]
[1755427545937,46.74689177,192.57,192.56,0.03]
[1755427546312,61.85310734,192.57,192.56,0.03]
[1755427548918,61.24310734,192.57,192.56,0.03]
[1755427549124,61.2450947,192.57,192.56,0.03]
[1755427550215,64.72866033,192.57,192.56,0.03]
[1755427550429,44.4295279,192.57,192.56,0.03]
[1755427550616,7.3495279,192.57,192.56,0.74]
[1755427550817,40.93008415,192.57,192.56,0.74]
[1755427552140,44.41778084,192.57,192.56,0.74]
[1755427553052,40.93008415,192.57,192.56,0.74]
[1755427553245,44.42028328,192.57,192.56,0.74]
[1755427553723,44.42028328,192.57,192.56,0.03]
[1755427554427,44.42028328,192.57,192.56,0.74]
[1755427554624,44.43204451,192.57,192.56,0.74]
[1755427555126,40.55019913,192.57,192.56,0.74]
[1755427555438,44.43416083,192.57,192.56,0.74]
[1755427556325,44.43416083,192.57,192.56,0.03]
[1755427556536,49.62707769,192.57,192.56,0.03]
[1755427556754,44.43416083,192.57,192.56,0.74]
[1755427557548,49.62707769,192.57,192.56,0.74]
[1755427558621,49.62707769,192.57,192.56,0.03]
[1755427558939,64.83329326,192.57,192.56,0.03]
[1755427560155,64.73329326,192.57,192.56,0.03]
[1755427560646,64.83329326,192.57,192.56,0.03]
[1755427562056,64.73329326,192.57,192.56,0.03]
[1755427562835,60.84933156,192.57,192.56,0.03]
[1755427563034,64.73861798,192.57,192.56,0.03]
[1755427563357,64.73859568,192.57,192.56,0.03]
[1755427563566,65.34859568,192.57,192.56,0.03]
[1755427564029,64.73859568,192.57,192.56,0.03]
[1755427566332,65.34859568,192.57,192.56,0.03]
[1755427569029,65.34847507,192.57,192.56,0.03]
[1755427569453,64.73847507,192.57,192.56,0.03]
[1755427571942,60.84933156,192.57,192.56,0.03]
[1755427572139,64.73789157,192.57,192.56,0.03]
[1755427572545,64.73781427,192.57,192.56,0.03]
[1755427573475,27.67781427,192.57,192.56,0.03]
[1755427573652,64.51781427,192.57,192.56,0.03]
[1755427574959,64.49781427,192.57,192.56,0.03]
[1755427576570,27.67781427,192.57,192.56,0.03]
[1755427576745,64.47781427,192.57,192.56,0.74]
[1755427577459,64.47781427,192.57,192.56,0.03]
[1755427580552,64.47781427,192.57,192.56,0.74]
[1755427581258,60.58933156,192.57,192.56,0.74]
[1755427581474,64.48139372,192.57,192.56,0.74]
[1755427582170,7.38226129,192.57,192.56,0.74]
[1755427582343,44.14226129,192.57,192.56,0.74]
[1755427588952,49.33517815,192.57,192.56,0.74]
[1755427589658,49.33517815,192.57,192.56,0.03]
[1755427589861,49.94517815,192.57,192.56,0.03]
[1755427590056,65.05139372,192.57,192.56,0.03]
[1755427590289,64.44224065,192.57,192.56,0.03]
[1755427591168,64.44224065,192.57,192.56,0.74]
[1755427593364,64.44224065,192.57,192.56,0.03]
[1755427594168,65.05224065,192.57,192.56,0.03]
[1755427595061,65.05284747,192.57,192.56,0.03]
[1755427595377,64.44284747,192.57,192.56,0.03]
[1755427596693,64.38284747,192.57,192.56,0.03]
[1755427597062,64.3827707,192.57,192.56,0.03]
[1755427598480,27.6827707,192.57,192.56,0.03]
[1755427598681,64.3827707,192.57,192.56,0.03]
[1755427599269,60.48933156,192.57,192.56,0.03]
[1755427599470,64.38292694,192.57,192.56,0.03]
[1755427603794,27.68292694,192.57,192.56,0.03]
[1755427603980,64.40292694,192.57,192.56,0.03]
[1755427605497,64.40348559,192.57,192.56,0.03]
[1755427606297,64.40348559,192.57,192.56,0.7]
[1755427608389,64.40350745,192.57,192.56,0.03]
[1755427609794,27.68350745,192.57,192.56,0.03]
[1755427609973,64.48350745,192.57,192.56,0.03]
[1755427610169,27.68350745,192.57,192.56,0.03]
[1755427610400,64.46350745,192.57,192.56,0.03]
[1755427612806,27.68350745,192.57,192.56,0.03]
[1755427612994,64.52350745,192.57,192.56,0.03]
[1755427616997,27.68350745,192.57,192.56,0.03]
[1755427617179,64.56350745,192.57,192.56,0.7]
[1755427617696,60.66933156,192.57,192.56,0.03]
[1755427617903,64.56396212,192.57,192.56,0.03]
[1755427618503,64.56396212,192.57,192.56,0.7]
[1755427619075,64.56396212,192.57,192.56,0.03]
[1755427620499,69.53520952,192.57,192.56,0.03]
[1755427620706,65.17396212,192.57,192.56,0.03]
[1755427621674,68.9858809,192.57,192.56,0.03]
[1755427621874,53.87966533,192.57,192.56,0.7]
[1755427622077,49.49774655,192.57,192.56,0.7]
[1755427622782,49.49777196,192.57,192.56,0.7]
[1755427622978,49.49777196,192.57,192.56,0.03]
[1755427623809,65.21398753,192.57,192.56,0.03]
[1755427624375,15.10621557,192.56,192.54,0.03]
[1755427624580,63.79189346,192.55,192.54,0.03]
[1755427624794,63.79189346,192.55,192.54,0.7]
[1755427625004,48.68567789,192.55,192.54,0.7]
[1755427625203,44.3048551,192.55,192.54,0.7]
[1755427625897,40.41019913,192.55,192.54,0.7]
[1755427626077,44.30418987,192.55,192.54,0.7]
[1755427626475,44.30420146,192.55,192.54,0.7]
[1755427631400,44.26420146,192.55,192.54,0.7]
[1755427633581,7.38420146,192.55,192.54,0.7]
[1755427633788,7.38420146,192.55,192.54,5.89372597]
[1755427634199,7.38420146,192.55,192.54,11.14850697]
[1755427635114,7.38238969,192.55,192.54,11.14850697]
[1755427639408,3.49019913,192.55,192.54,11.14850697]
[1755427639600,4.44082279,192.62,192.57,26.0]
[1755427639804,44.2151865,192.61,192.58,0.71]
[1755427640009,7.3951865,192.6,192.58,0.71]
[1755427640208,7.3951865,192.59,192.58,0.71]
[1755427640692,3.5029329,192.59,192.58,0.71]
[1755427641025,3.5029329,192.59,192.58,21.50367721]
[1755427641200,0.06,192.62,192.58,21.50367721]
[1755427641403,3.50104792,192.61,192.59,0.71]
[1755427641596,0.06,192.62,192.59,0.71]
[1755427641801,3.49837604,192.61,192.59,0.71]
[1755427642014,0.06,192.62,192.59,0.71]
[1755427642412,0.06,192.62,192.6,5.19210799]
[1755427642811,0.06,192.62,192.61,0.71]
[1755427643014,3.55608153,192.62,192.61,0.71]
[1755427643726,0.06,192.62,192.61,5.90183842]
[1755427644226,0.06,192.62,192.61,21.50205742]
[1755427646127,0.06,192.62,192.61,15.600219]
[1755427646312,3.55192591,192.62,192.61,15.600219]
[1755427646511,3.55192591,192.62,192.61,16.310219]
[1755427647432,0.06,192.62,192.61,16.310219]
[1755427654730,0.06,192.62,192.61,21.50205742]
[1755427656539,0.06,192.62,192.61,16.310219]
[1755427657729,0.06,192.62,192.61,21.50205742]
[1755427665526,0.06,192.62,192.61,16.310219]
[1755427665754,0.06,192.62,192.61,15.600219]
[1755427667734,0.06,192.62,192.61,16.270219]
[1755427670865,0.06,192.62,192.61,15.600219]
[1755427671745,0.06,192.62,192.61,16.270219]
[1755427672765,0.06,192.62,192.61,15.600219]
[1755427674241,0.06,192.62,192.61,16.270219]
[1755427675836,0.06,192.62,192.61,21.46205742]
[1755427678460,3.55111274,192.62,192.61,21.46205742]
[1755427679466,3.55111274,192.62,192.61,15.600219]
[1755427680058,7.43192499,192.62,192.61,15.600219]
[1755427680264,3.55111274,192.62,192.61,16.270219]
[1755427681543,3.55111274,192.62,192.61,21.46205742]
[1755427682038,0.06,192.62,192.61,21.46205742]
[1755427684670,0.06,192.62,192.61,25.55648997]
[1755427684866,0.06,192.62,192.61,26.07567381]
[1755427685254,1e-08,192.62,192.61,26.07567381]
[1755427694279,1e-08,192.62,192.61,106.77567381]
[1755427694451,1e-08,192.62,192.61,142.85648997]
[1755427706081,1e-08,192.62,192.61,142.10648997]
[1755427706521,1e-08,192.62,192.61,142.79648997]
[1755427712511,1e-08,192.66,192.64,26.0]
[1755427712715,1e-08,192.66,192.65,43.81496483]
[1755427713108,1e-08,192.66,192.65,46.58369683]
[1755427713728,1e-08,192.66,192.65,51.77445727]
[1755427715907,1e-08,192.66,192.65,50.58538123]
[1755427716421,1e-08,192.66,192.65,51.79445727]
[1755427717716,1e-08,192.66,192.65,132.49445727]
[1755427717916,1e-08,192.66,192.65,131.97538123]
[1755427721919,1e-08,192.66,192.65,131.28538123]
[1755427723938,1e-08,192.66,192.65,131.97538123]
[1755427725056,1e-08,192.66,192.65,94.74538123]
[1755427725224,1e-08,192.66,192.65,131.30538123]
[1755427727860,1e-08,192.66,192.65,14.04538123]
[1755427728035,0.61000001,192.66,192.65,43.80949244]
[1755427730162,1e-08,192.66,192.65,44.46949244]
[1755427730746,1e-08,192.66,192.65,43.80949244]
[1755427731943,0.61000001,192.66,192.65,43.80949244]
[1755427732265,1e-08,192.66,192.65,43.80949244]
[1755427732442,1e-08,192.66,192.65,44.46949244]
[1755427732770,1e-08,192.72,192.68,26.0]
[1755427733052,4.35609692,192.84,192.69,82.21446916]
[1755427733359,3.493041,192.83,192.7,0.66]
[1755427733556,3.493041,192.82,192.74,26.0]
[1755427733868,3.493041,192.81,192.75,36.58]
[1755427734155,3.493041,192.8,192.75,36.58]
[1755427734344,3.493041,192.79,192.76,20.77417616]
[1755427734534,5.18628644,192.82,192.77,36.58]
[1755427734727,3.49135722,192.81,192.77,36.58]
[1755427734923,3.49135722,192.8,192.77,36.58]
[1755427735229,3.49135722,192.79,192.77,36.58]
[1755427735552,5.18628644,192.82,192.77,36.58]
[1755427735553,3.49135722,192.81,192.77,36.58]
[1755427735764,3.49135722,192.8,192.76,57.33417616]
[1755427736059,3.49135722,192.79,192.76,57.33417616]
[1755427736242,3.49135722,192.81,192.76,57.33417616]
[1755427736443,3.49135722,192.8,192.76,57.33417616]
[1755427736635,3.49135722,192.79,192.76,57.33417616]
[1755427736836,3.49135722,192.81,192.76,57.33417616]
[1755427737038,3.49135722,192.8,192.76,57.33417616]
[1755427737236,3.49135722,192.81,192.76,57.33417616]
[1755427737449,3.49135722,192.8,192.76,57.33417616]
[1755427737655,3.49135722,192.81,192.76,57.33417616]
[1755427737855,3.49135722,192.81,192.76,57.99417616]
[1755427738051,3.49135722,192.81,192.76,41.74773616]
[1755427738228,3.49135722,192.81,192.77,5.186286]
[1755427738428,3.49135722,192.82,192.78,36.56]
[1755427738635,0.06,192.8,192.78,36.56]
[1755427739130,0.06,192.8,192.79,3.491358]
[1755427740977,3.55135722,192.8,192.77,36.54]
[1755427741161,0.06,192.8,192.77,5.185929]
[1755427742487,3.49135722,192.79,192.77,5.185929]
[1755427742774,3.49135722,192.78,192.73,36.54]
[1755427742974,3.49135722,192.77,192.74,5.186506]
[1755427743315,3.49135722,192.79,192.74,5.186506]
[1755427743450,3.49135722,192.78,192.74,5.186506]
[1755427743651,3.49135722,192.77,192.74,5.186506]
[1755427743983,8.67851403,192.79,192.74,5.186506]
[1755427744151,3.49135722,192.78,192.74,5.186506]
[1755427744351,3.49135722,192.77,192.74,5.186506]
[1755427744552,3.49135722,192.78,192.73,41.72860508]
[1755427744869,3.49135722,192.77,192.73,41.72860508]
[1755427745072,3.49135722,192.78,192.73,41.72860508]
[1755427745270,3.49135722,192.77,192.73,41.72860508]
[1755427745465,3.49135722,192.78,192.73,42.38860508]
[1755427745665,3.49135722,192.79,192.74,0.66]
[1755427745874,3.49135722,192.78,192.74,0.66]
[1755427746073,3.49135722,192.79,192.74,0.66]
[1755427746260,3.49135722,192.78,192.74,0.66]
[1755427746459,3.49135722,192.79,192.73,41.72860508]
[1755427746653,3.49135722,192.78,192.73,42.38860508]
[1755427746963,3.49135722,192.79,192.74,0.66]
[1755427747175,3.49135722,192.78,192.74,0.66]
[1755427747380,3.49135722,192.77,192.74,0.66]
[1755427747584,3.49135722,192.79,192.74,0.66]
[1755427747764,3.49135722,192.78,192.73,41.72860508]
[1755427747968,3.49135722,192.77,192.73,41.72860508]
[1755427748170,3.49135722,192.78,192.73,41.72860508]
[1755427748372,5.18699196,192.79,192.73,42.38860508]
[1755427748373,3.49135722,192.77,192.73,42.38860508]
[1755427748562,3.49135722,192.78,192.73,42.38860508]
[1755427748764,3.49135722,192.77,192.73,42.38860508]
[1755427748964,3.49135722,192.78,192.73,42.38860508]
[1755427749182,3.49135722,192.77,192.73,42.38860508]
[1755427749363,3.49135722,192.78,192.73,42.38860508]
[1755427749576,3.49135722,192.77,192.73,42.38860508]
[1755427749775,3.49135722,192.78,192.73,42.38860508]
[1755427749978,3.49135722,192.77,192.73,42.38860508]
[1755427750282,3.49135722,192.78,192.73,42.38860508]
[1755427750485,3.49135722,192.77,192.73,42.38860508]
[1755427750797,3.49135722,192.78,192.73,42.38860508]
[1755427751086,3.49135722,192.77,192.73,42.38860508]
[1755427751286,5.18699196,192.79,192.74,0.66]
[1755427751464,3.49023767,192.78,192.74,0.66]
[1755427751655,3.49023767,192.77,192.75,0.66]
[1755427751854,3.49023767,192.79,192.75,0.66]
[1755427752073,3.49023767,192.78,192.73,47.57559708]
[1755427752284,3.49023767,192.77,192.73,42.38860508]
[1755427752473,3.49023767,192.79,192.73,42.38860508]
[1755427752668,3.49023767,192.78,192.74,0.66]
[1755427752976,3.49023767,192.77,192.73,36.54]
[1755427753184,5.18704388,192.79,192.73,36.54]
[1755427753363,5.18704388,192.79,192.71,36.98661897]
[1755427753364,3.49134942,192.78,192.72,0.66]
[1755427753701,3.49134942,192.77,192.72,5.84873631]
[1755427753864,3.49134942,192.76,192.72,5.18873631]
[1755427754064,3.49134942,192.78,192.73,0.66]
[1755427754268,3.49134942,192.77,192.73,0.66]
[1755427754467,3.49134942,192.76,192.74,0.71]
[1755427754689,3.49134942,192.78,192.74,0.71]
[1755427754886,3.49134942,192.77,192.74,0.71]
[1755427755183,3.49134942,192.76,192.74,0.71]
[1755427755390,5.18704388,192.79,192.74,0.71]
[1755427755688,3.49269846,192.78,192.74,0.71]
[1755427755887,3.49269846,192.77,192.74,0.71]
[1755427756091,3.49269846,192.76,192.74,0.71]
[1755427756288,5.18704388,192.79,192.74,0.71]
[1755427756467,7.37484483,192.78,192.74,0.71]
[1755427756661,3.49330504,192.77,192.75,0.71]
[1755427756980,5.18704388,192.79,192.76,0.71]
[1755427757173,7.37483895,192.78,192.73,5.21857346]
[1755427757372,3.49330348,192.77,192.74,0.71]
[1755427757559,3.49330348,192.76,192.74,0.71]
[1755427757759,5.24672199,192.8,192.73,5.21857346]
[1755427757989,7.37639723,192.79,192.75,0.71]
[1755427758188,7.37647833,192.78,192.75,0.71]
[1755427758388,3.49401271,192.77,192.76,0.71]
[1755427760371,3.49401271,192.79,192.76,5.89779829]
[1755427760580,0.06,192.8,192.77,0.71]
[1755427760965,3.49352715,192.79,192.76,5.18779829]
[1755427761171,0.06,192.8,192.78,0.71]
[1755427761483,3.49347682,192.79,192.78,0.71]
[1755427764300,0.06,192.8,192.78,0.71]
[1755427765364,0.06,192.8,192.76,5.18779829]
[1755427765568,3.49243756,192.79,192.78,0.71]
[1755427766195,0.06,192.8,192.78,0.71]
[1755427766973,3.4922797,192.79,192.75,45.56953082]
[1755427767301,0.06,192.8,192.76,0.71]
[1755427768099,3.4922671,192.79,192.76,5.8977375]
[1755427768398,0.06,192.8,192.77,0.71]
[1755427768618,3.49228746,192.79,192.78,0.71]
[1755427769084,3.49228746,192.79,192.76,5.8977375]
[1755427769279,0.06,192.8,192.77,0.71]
[1755427769481,3.49233789,192.79,192.77,0.71]
[1755427769692,0.06,192.8,192.78,0.71]
[1755427770598,0.06,192.8,192.79,0.71]
[1755427770898,3.5522336,192.8,192.79,0.71]
[1755427771288,0.06,192.8,192.79,0.71]
[1755427772324,0.06,192.8,192.79,5.89699102]
[1755427773088,0.06,192.8,192.78,3.491986]
[1755427773289,0.06,192.8,192.79,0.71]
[1755427775186,3.55257758,192.8,192.79,0.71]
[1755427777310,3.55423733,192.8,192.79,0.71]
[1755427781614,8.74099618,192.8,192.75,0.71]
[1755427781807,8.74099618,192.8,192.74,0.03]
[1755427781808,3.49423733,192.79,192.74,5.21813278]
[1755427782009,3.49423733,192.78,192.76,0.71]
[1755427782211,0.06,192.8,192.76,0.71]
[1755427782409,0.06,192.8,192.74,10.40404778]
[1755427782410,3.49407832,192.79,192.77,0.71]
[1755427782605,3.49407832,192.78,192.75,0.71]
[1755427782911,5.24682616,192.8,192.74,10.40404778]
[1755427782912,5.24682616,192.8,192.74,5.215915]
[1755427783118,7.37658888,192.79,192.74,26.03]
[1755427783296,3.49411415,192.78,192.75,0.71]
[1755427783494,3.49411415,192.77,192.75,0.71]
[1755427783805,5.18713157,192.79,192.75,0.71]
[1755427784005,3.49435037,192.78,192.75,0.71]
[1755427784222,3.49435037,192.77,192.75,0.71]
[1755427784411,5.18713157,192.79,192.75,0.71]
[1755427784591,0.06,192.8,192.74,26.03]
[1755427784592,3.49441259,192.78,192.76,0.72]
[1755427784798,5.24677157,192.8,192.74,31.21832992]
[1755427784999,3.49430638,192.79,192.76,0.72]
[1755427785193,3.49430638,192.78,192.76,0.72]
[1755427785419,3.49430638,192.77,192.74,31.21832992]
[1755427785620,5.24677157,192.8,192.75,0.72]
[1755427785807,7.37722038,192.79,192.75,0.72]
[1755427786116,3.49444848,192.78,192.75,0.72]
[1755427786326,3.49444848,192.77,192.75,0.72]
[1755427786497,5.1870194,192.79,192.74,0.03]
[1755427786699,7.37780734,192.78,192.74,0.03]
[1755427786897,3.49471966,192.77,192.75,0.72]
[1755427787117,5.1870194,192.79,192.75,0.72]
[1755427787308,3.49459124,192.78,192.75,0.72]
[1755427787620,3.49459124,192.78,192.7,53.69521791]
[1755427787836,3.49459124,192.79,192.72,5.187019]
[1755427788121,3.49459124,192.78,192.72,5.187019]
[1755427788300,3.49459124,192.79,192.7,53.69521791]
[1755427788500,3.49459124,192.78,192.71,15.589679]
[1755427788694,3.49459124,192.79,192.71,15.589679]
[1755427788898,3.49459124,192.78,192.71,20.77882331]
[1755427789130,3.49459124,192.79,192.71,20.77882331]
[1755427789299,3.49459124,192.78,192.71,20.77882331]
[1755427789500,3.49459124,192.79,192.71,20.77882331]
[1755427789717,3.49459124,192.78,192.72,0.72]
[1755427789899,3.49459124,192.77,192.72,0.72]
[1755427790921,3.49459124,192.77,192.73,5.18860582]
[1755427791113,3.49459124,192.78,192.74,0.72]
[1755427791320,3.49459124,192.77,192.74,0.72]
[1755427791506,4.16459124,192.78,192.74,0.72]
[1755427791706,3.49459124,192.77,192.74,0.72]
[1755427795612,0.67,192.76,192.71,5.85537099]
[1755427795923,4.16519629,192.76,192.7,58.91441816]
[1755427796110,4.16519629,192.76,192.72,0.72]
[1755427796927,9.35312785,192.76,192.72,0.72]
[1755427797123,5.85793156,192.76,192.72,0.72]
[1755427797629,3.49519629,192.75,192.72,0.72]
[1755427797820,5.85793156,192.76,192.72,0.72]
[1755427798024,3.49490685,192.75,192.72,0.72]
[1755427798334,5.85793156,192.76,192.72,0.72]
[1755427798528,3.49476271,192.75,192.73,0.72]
[1755427798826,5.18754797,192.77,192.73,0.72]
[1755427799025,3.49476038,192.76,192.73,0.72]
[1755427799200,3.49476038,192.75,192.73,0.72]
[1755427799530,5.85754797,192.77,192.73,0.72]
[1755427799729,3.49462305,192.76,192.73,0.72]
[1755427799926,3.49462305,192.75,192.72,5.18882292]
[1755427800117,5.18728387,192.78,192.74,0.72]
[1755427800316,7.37766155,192.77,192.74,0.72]
[1755427800630,3.4946234,192.76,192.74,0.72]
[1755427800831,3.4946234,192.75,192.74,0.72]
[1755427801334,3.4946234,192.75,192.72,5.90880401]
[1755427801512,5.85728387,192.78,192.73,0.72]
[1755427801711,3.49451418,192.77,192.73,0.72]
[1755427801912,3.49451418,192.76,192.74,0.72]
[1755427802128,5.85728387,192.78,192.74,0.72]
[1755427802332,3.49445513,192.77,192.74,0.72]
[1755427802629,3.49445513,192.76,192.74,0.72]
[1755427802834,5.85728387,192.78,192.74,0.72]
[1755427803021,7.37742027,192.77,192.74,0.72]
[1755427803230,3.49452521,192.76,192.74,0.72]
[1755427803416,5.8570522,192.79,192.74,0.72]
[1755427803624,7.37723698,192.78,192.74,0.72]
[1755427803837,3.49442292,192.77,192.74,0.72]
[1755427804138,3.49442292,192.76,192.74,0.72]
[1755427804337,5.8570522,192.79,192.74,0.72]
[1755427804636,7.37690259,192.78,192.74,0.72]
[1755427804933,3.49426418,192.77,192.74,5.90828647]
[1755427805119,3.49426418,192.76,192.75,7.376902]
[1755427807942,3.49426418,192.76,192.75,8.096902]
[1755427810028,3.49426418,192.78,192.75,13.28496944]
[1755427810231,0.06,192.79,192.78,26.0]
[1755427810414,3.55344993,192.79,192.78,26.0]
[1755427810730,3.55344993,192.79,192.78,26.72]
[1755427810939,0.06,192.79,192.78,28.798192]
[1755427811711,0.06,192.79,192.78,33.98545208]
[1755427812139,0.06,192.79,192.78,33.26545208]
[1755427812433,0.06,192.79,192.78,33.98545208]
[1755427815722,0.06,192.79,192.78,2.078192]
[1755427815941,4.23293907,192.79,192.78,2.078192]
[1755427816253,4.23293907,192.79,192.74,0.72]
[1755427816460,4.17293907,192.78,192.75,2.709393]
[1755427816661,3.49293907,192.77,192.75,2.709393]
[1755427816957,3.49324064,192.78,192.76,0.72]
[1755427817123,0.06,192.79,192.76,0.72]
[1755427817449,3.4933546,192.78,192.76,0.72]
[1755427817633,0.06,192.79,192.76,7.98616504]
[1755427817833,0.06,192.79,192.77,0.72]
[1755427818393,0.06,192.79,192.77,4.661655]
[1755427818851,0.06,192.79,192.78,0.72]
[1755427819068,3.55365807,192.79,192.78,0.72]
[1755427819537,3.55365807,192.79,192.78,5.90726008]
[1755427819852,3.55365807,192.79,192.78,9.46091808]
[1755427820757,0.06,192.79,192.78,9.46091808]
[1755427821841,3.55403892,192.79,192.78,3.553658]
[1755427822440,3.55403892,192.79,192.78,4.273658]
[1755427822643,0.06,192.79,192.78,4.273658]
[1755427823078,0.06,192.79,192.78,3.553658]
[1755427823377,0.06,192.79,192.78,4.273658]
[1755427823864,3.55425913,192.79,192.78,3.553658]
[1755427824234,0.06,192.79,192.78,3.553658]
[1755427824438,3.5543572,192.79,192.78,3.553658]
[1755427824645,3.5543572,192.79,192.78,4.273658]
[1755427824870,3.5543572,192.79,192.78,9.46091808]
[1755427825161,3.55441395,192.79,192.78,3.553658]
[1755427825964,3.55441395,192.79,192.78,4.273658]
[1755427827462,3.55441395,192.79,192.78,3.553658]
[1755427832277,3.55441395,192.79,192.78,9.46091808]
[1755427834480,0.06,192.79,192.78,9.46091808]
[1755427834663,3.55395366,192.79,192.78,9.46091808]
[1755427835480,3.55395366,192.79,192.78,4.273658]
[1755427835866,0.06,192.79,192.78,4.273658]
[1755427836067,0.06,192.79,192.78,3.553658]
[1755427837081,0.06,192.79,192.78,9.46091808]
[1755427843874,0.06,192.79,192.78,9.97964408]
[1755427844273,0.06,192.79,192.78,35.97964408]
[1755427846695,0.06,192.79,192.78,72.43964408]